fUSD/lending_fUSD_20240126
["ID","MTS","AMOUNT","RATE_DAILY","PERIOD"]
[312818498,1706296242705,-330.53,0.00026674,2]
[312818500,1706296242714,-420.91,0.0002682,2]
[312818502,1706296242723,-357.68,0.0002682,2]
[312818504,1706296242733,-2301.30537444,0.00026991,2]
[312818506,1706296242742,-600.0,0.00027,3]
[312818508,1706296242751,-420.91,0.00027253,2]
[312818510,1706296242761,-357.68,0.00027253,2]
[312818512,1706296242771,-791.1862571,0.00027263,2]
[312818514,1706296242780,-150.57471312,0.00027367,2]
[312818517,1706296242789,-155.0,0.00027397,2]
[312818519,1706296242798,-150.0,0.00027397,2]
[312818521,1706296242807,-3549.74,0.00027397,2]
[312818523,1706296242816,-167.26,0.00027397,2]
[312818525,1706296242825,-2275.0,0.00027466,2]
[312818527,1706296242835,-2908.0,0.00027466,2]
[312818529,1706296242844,-19722.0,0.00027466,2]
[312818531,1706296242853,-1030.0,0.00027466,2]
[312818533,1706296242863,-155.0,0.000275,2]
[312818535,1706296242873,-330.53,0.000275,2]
[312818537,1706296242882,-3549.74,0.00027556,2]
[312818539,1706296242892,-209.0,0.00027579,2]
[312818542,1706296242904,-1488.51,0.00027671,2]
[312818543,1706296242913,-420.91,0.00027686,2]
[312818546,1706296242923,-357.68,0.00027686,2]
[312818547,1706296242934,-3549.74,0.00027714,2]
[312818550,1706296242944,-1630.03,0.00027794,2]
[312818551,1706296242954,-3549.74,0.00027872,2]
[312818553,1706296242964,-359.10451625,0.00027874,2]
[312818556,1706296242974,-1000.0,0.00027899,2]
[312818557,1706296242983,-150.0,0.00027945,2]
[312818559,1706296242992,-690.05355161,0.00028,2]
[312818561,1706296243002,-12320.38792651,0.00028,2]
[312818563,1706296243012,-3549.74,0.0002803,2]
[312818566,1706296243022,-206.0,0.00028069,2]
[312818567,1706296243033,-150.57471312,0.00028112,2]
[312818569,1706296243042,-420.91,0.00028118,2]
[312818571,1706296243052,-357.68,0.00028118,2]
[312818573,1706296243063,-3549.74,0.00028189,2]
[312818576,1706296243072,-167.0,0.00028307,2]
[312818578,1706296243082,-330.53,0.00028327,2]
[312818579,1706296243091,-3549.74,0.00028347,2]
[312818582,1706296243101,-2301.30537444,0.00028355,2]
[312818583,1706296243110,-750.56,0.00028375,2]
[312818585,1706296243119,-150.0,0.00028493,2]
[312818587,1706296243128,-3549.74,0.00028505,2]
[312818589,1706296243138,-420.91,0.00028551,2]
[312818591,1706296243146,-357.68,0.00028551,2]
[312818593,1706296243156,-3549.74,0.00028664,2]
[312818595,1706296243165,-500.0,0.0002869,2]
[312818597,1706296243175,-500.0,0.0002869,10]
[312818599,1706296243184,-1488.51,0.00028695,2]
[312818601,1706296243193,-155.0,0.00028767,2]
[312818603,1706296243202,-167.26,0.00028767,2]
[312818606,1706296243211,-3549.74,0.00028822,2]
[312818608,1706296243221,-150.57471312,0.00028856,2]
[312818610,1706296243231,-420.91,0.00028983,2]
[312818612,1706296243241,-357.68,0.00028983,2]
[312818614,1706296243250,-155.24545507,0.00029,2]
[312818616,1706296243259,-650.0,0.00029,3]
[312818618,1706296243270,-150.0,0.00029041,2]
[312818620,1706296243279,-1000.0,0.00029091,2]
[312818622,1706296243288,-1000.0,0.0002912,7]
[312818624,1706296243297,-316.42725676,0.0002912,7]
[312818626,1706296243306,-6884.64644867,0.0002912,7]
[312818628,1706296243315,-13148.28388144,0.0002912,7]
[312818630,1706296243325,-1000.0,0.0002912,7]
[312818633,1706296243334,-1000.0,0.0002912,7]
[312818635,1706296243342,-3040.51360819,0.0002912,7]
[312818637,1706296243351,-1000.0,0.0002912,7]
[312818639,1706296243360,-275.0,0.0002912,6]
[312818641,1706296243369,-420.91,0.00029416,2]
[312818643,1706296243378,-357.68,0.00029416,2]
[312818645,1706296243388,-1630.03,0.00029438,2]
[312818647,1706296243397,-150.0,0.00029589,2]
[312818649,1706296243406,-150.57471312,0.00029601,2]
[312818651,1706296243415,-533.11,0.00029664,2]
[312818653,1706296243424,-2301.30537444,0.00029718,2]
[312818655,1706296243432,-1488.51,0.00029719,2]
[312818657,1706296243441,-500.0,0.00029786,2]
[312818659,1706296243450,-500.0,0.00029786,10]
[312818661,1706296243459,-175.77811958,0.000298,2]
[312818662,1706296243469,-420.91,0.00029848,2]
[312818663,1706296243478,-357.68,0.00029848,2]
[312818664,1706296243487,-685.15809506,0.000299,2]
[312818666,1706296243495,-777.16394592,0.000299,2]
[312818668,1706296243505,-50000.0,0.0003,2]
[312818670,1706296243514,-436.48884924,0.0003,4]
[312818672,1706296243524,-373.68718079,0.0003,4]
[312818674,1706296243533,-155.0,0.0003,4]
[312818676,1706296243542,-155.0,0.0003,2]
[312818678,1706296243551,-155.86348195,0.0003,4]
[312818680,1706296243560,-4760.22043379,0.0003,4]
[312818682,1706296243569,-905.41355492,0.0003,4]
[312818684,1706296243578,-374.99862499,0.0003,2]
[312818686,1706296243586,-4757.70943985,0.0003,4]
[312818687,1706296243595,-692.71154827,0.0003,2]
[312818689,1706296243604,-167.83997318,0.0003,2]
[312818691,1706296243614,-454.58892633,0.0003,2]
[312818694,1706296243623,-415.19,0.0003,4]
[312818696,1706296243632,-160.95109704,0.0003,4]
[312818698,1706296243642,-1998.1,0.0003,2]
[312818699,1706296243651,-309448.04312828,0.0003,4]
[312818701,1706296243660,-19063.91379215,0.0003,4]
[312818703,1706296243671,-517.533707,0.0003,2]
[312818705,1706296243680,-1000.0,0.0003,2]
[312818707,1706296243690,-252.27204359,0.000301,4]
[312818710,1706296243700,-150.0,0.00030137,2]
[312818712,1706296243709,-167.26,0.00030137,2]
[312818713,1706296243719,-13572.75,0.00030137,2]
[312818716,1706296243729,-155.0,0.00030137,2]
[312818717,1706296243737,-150.0,0.00030137,2]
[312818719,1706296243747,-420.91,0.00030281,2]
[312818721,1706296243756,-357.68,0.00030281,2]
[312818723,1706296243766,-150.57471312,0.00030346,2]
[312818726,1706296243775,-7999.99,0.00030579,14]
[312818739,1706296243893,-209.0,0.00030579,2]
[312818741,1706296243907,-750.56,0.00030639,2]
[312818743,1706296243916,-163.1747517,0.00030685,2]
[312818745,1706296243925,-420.91,0.00030714,2]
[312818747,1706296243935,-357.68,0.00030714,2]
[312818749,1706296243944,-150.0,0.00030714,2]
[312818750,1706296243954,-1488.51,0.00030743,2]
[312818752,1706296243963,-500.0,0.00030882,10]
[312818754,1706296243972,-347.98035924,0.00030882,10]
[312818756,1706296243983,-206.0,0.00030972,7]
[312818758,1706296243992,-50000.0,0.00031,2]
[312818760,1706296244002,-700.0,0.00031,3]
[312818763,1706296244012,-4629.54277422,0.00031031,6]
[312818765,1706296244022,-7072.41930532,0.00031031,6]
[312818766,1706296244031,-20689.76396035,0.00031031,7]
[312818767,1706296244040,-4592.20122424,0.00031031,7]
[312818768,1706296244049,-2301.30537444,0.00031082,2]
[312818769,1706296244063,-150.57471312,0.0003109,2]
[312818770,1706296244073,-420.91,0.00031146,2]
[312818771,1706296244082,-357.68,0.00031146,2]
[312818772,1706296244092,-1807.84533026,0.00031158,4]
[312818773,1706296244101,-150.0,0.00031291,2]
[312818774,1706296244110,-1998.1,0.000313,2]
[312818775,1706296244119,-1500.0,0.00031446,2]
[312818776,1706296244129,-489.59439013,0.000315,4]
[312818777,1706296244141,-167.26,0.00031507,2]
[312818778,1706296244150,-155.0,0.00031507,2]
[312818779,1706296244159,-420.91,0.00031579,2]
[312818780,1706296244169,-357.68,0.00031579,2]
[312818781,1706296244179,-180.0,0.00031644,2]
[312818782,1706296244188,-155.67,0.00031644,2]
[312818783,1706296244197,-1000.0,0.00031667,2]
[312818784,1706296244207,-164.48,0.000317,2]
[312818785,1706296244216,-1000.0,0.00031736,2]
[312818786,1706296244226,-1488.51,0.00031767,2]
[312818787,1706296244235,-152.0,0.00031768,3]
[312818788,1706296244245,-1253.47677354,0.00031797,2]
[312818789,1706296244254,-366.04607581,0.00031799,2]
[312818790,1706296244263,-284.08397793,0.00031799,2]
[312818791,1706296244272,-222130.312955,0.000318,3]
[312818792,1706296244281,-150.57471312,0.00031835,2]
[312818793,1706296244290,-150.0,0.00031867,2]
[312818794,1706296244299,-5000.0,0.0003189,2]
[312818795,1706296244308,-500.0,0.00031978,10]
[312818796,1706296244317,-50000.0,0.00032,2]
[312818797,1706296244327,-155.0,0.00032,4]
[312818798,1706296244336,-13086.11608583,0.00032,4]
[312818799,1706296244345,-155.43063941,0.00032,2]
[312818800,1706296244354,-420.91,0.00032011,2]
[312818801,1706296244364,-357.68,0.00032011,2]
[312818802,1706296244373,-150.0,0.00032055,2]
[312818803,1706296244382,-1500.0,0.00032098,2]
[312818804,1706296244393,-150.0,0.00032109,2]
[312818805,1706296244402,-151.0,0.00032119,120]
[312818806,1706296244411,-150.0,0.0003214,2]
[312818807,1706296244420,-150.0,0.00032143,2]
[312818808,1706296244429,-150.0,0.00032153,2]
[312818809,1706296244439,-150.0,0.000322,2]
[312818810,1706296244448,-150.0,0.00032207,2]
[312818811,1706296244457,-185.01090773,0.00032249,2]
[312818812,1706296244466,-150.0,0.0003226,2]
[312818813,1706296244475,-150.0,0.00032262,2]
[312818814,1706296244484,-150.0,0.00032285,2]
[312818815,1706296244493,-150.0,0.00032328,2]
[312818816,1706296244502,-150.0,0.00032346,2]
[312818817,1706296244511,-150.0,0.00032348,2]
[312818818,1706296244520,-207.0,0.0003235,2]
[312818819,1706296244529,-150.0,0.00032352,2]
[312818820,1706296244538,-150.0,0.00032353,2]
[312818821,1706296244547,-150.0,0.00032354,2]
[312818822,1706296244556,-150.0,0.00032384,2]
[312818823,1706296244564,-150.0,0.00032396,2]
[312818824,1706296244573,-150.0,0.00032397,2]
[312818825,1706296244583,-1618.49754814,0.000324,2]
[312818826,1706296244592,-1618.49754811,0.000324,2]
[312818827,1706296244601,-1618.49754811,0.000324,2]
[312818828,1706296244611,-1618.49754811,0.000324,2]
[312818829,1706296244619,-1618.49754811,0.000324,2]
[312818830,1706296244629,-1618.49754811,0.000324,2]
[312818831,1706296244640,-1618.49754811,0.000324,2]
[312818832,1706296244652,-1618.49754811,0.000324,2]
[312818833,1706296244661,-1618.49754811,0.000324,2]
[312818834,1706296244670,-1618.49754811,0.000324,2]
[312818835,1706296244679,-1618.49754811,0.000324,2]
[312818836,1706296244688,-1618.49754811,0.000324,2]
[312818837,1706296244697,-1618.49754811,0.000324,2]
[312818838,1706296244706,-150.0,0.00032407,2]
[312818839,1706296244715,-150.0,0.0003242,2]
[312818840,1706296244724,-150.0,0.00032422,2]
[312818841,1706296244733,-150.0,0.0003243,2]
[312818842,1706296244742,-150.0,0.00032432,2]
[312818843,1706296244751,-150.0,0.00032432,2]
[312818844,1706296244760,-420.91,0.00032444,2]
[312818845,1706296244769,-357.68,0.00032444,2]
[312818846,1706296244778,-150.0,0.00032444,2]
[312818847,1706296244787,-2301.30537444,0.00032445,4]
[312818848,1706296244797,-150.0,0.00032462,2]
[312818849,1706296244806,-438.75,0.00032466,2]
[312818850,1706296244815,-150.0,0.00032468,2]
[312818851,1706296244825,-150.0,0.0003247,2]
[312818852,1706296244835,-833.33333,0.0003247,2]
[312818853,1706296244845,-397.68553298,0.0003247,4]
[312818854,1706296244855,-500.0,0.00032471,2]
[312818855,1706296244865,-150.0,0.00032472,2]
[312818856,1706296244874,-150.0,0.00032483,2]
[312818857,1706296244886,-150.0,0.00032496,2]
[312818858,1706296244895,-155.0,0.000325,2]
[312818859,1706296244909,-200.0,0.00032503,3]
[312818860,1706296244919,-205.895791,0.00032503,3]
[312818861,1706296244930,-500.0,0.00032504,2]
[312818862,1706296244939,-200.0,0.00032504,2]
[312818863,1706296244950,-150.0,0.00032535,2]
[312818864,1706296244959,-200.0,0.00032537,2]
[312818865,1706296244968,-800.0,0.00032537,3]
[312818866,1706296244977,-800.0,0.00032538,3]
[312818867,1706296244988,-150.0,0.00032543,2]
[312818868,1706296244997,-150.0,0.00032544,2]
[312818869,1706296245006,-150.0,0.00032545,2]
[312818870,1706296245015,-150.0,0.00032552,2]
[312818871,1706296245026,-150.0,0.00032554,2]
[312818872,1706296245036,-150.0,0.00032557,2]
[312818873,1706296245046,-150.0,0.00032558,2]
[312818874,1706296245056,-150.0,0.00032561,2]
[312818875,1706296245065,-150.0,0.00032571,2]
[312818876,1706296245074,-150.0,0.00032578,2]
[312818877,1706296245083,-150.0,0.00032578,2]
[312818878,1706296245093,-150.57471312,0.00032579,2]
[312818879,1706296245103,-150.0,0.00032585,2]
[312818880,1706296245113,-150.0,0.0003259,2]
[312818881,1706296245123,-150.0,0.000326,2]
[312818882,1706296245134,-1998.1,0.000326,2]
[312818883,1706296245142,-150.0,0.00032619,2]
[312818884,1706296245152,-500.0,0.00032656,3]
[312818885,1706296245161,-500.0,0.00032665,3]
[312818886,1706296245171,-150.0,0.00032671,2]
[312818887,1706296245181,-500.0,0.00032674,3]
[312818888,1706296245191,-500.0,0.00032674,3]
[312818889,1706296245200,-150.0,0.00032682,2]
[312818890,1706296245209,-500.0,0.00032682,3]
[312818891,1706296245219,-500.0,0.00032682,3]
[312818892,1706296245229,-500.0,0.00032691,3]
[312818893,1706296245237,-500.0,0.00032691,3]
[312818894,1706296245247,-150.0,0.00032698,2]
[312818895,1706296245256,-2000.0,0.000327,4]
[312818896,1706296245267,-500.0,0.000327,3]
[312818897,1706296245277,-33186.36946,0.000327,2]
[312818898,1706296245288,-150.1,0.000327,2]
[312818899,1706296245297,-372.0,0.000327,21]
[312818900,1706296245306,-200.0,0.000327,2]
[312818901,1706296245315,-500.0,0.000327,3]
[312818902,1706296245324,-1151.752535,0.000327,5]
[312818903,1706296245333,-328.92,0.000327,2]
[312818904,1706296245342,-150.0,0.00032701,2]
[312818905,1706296245351,-150.0,0.00032717,2]
[312818906,1706296245361,-150.0,0.00032743,2]
[312818907,1706296245371,-150.0,0.00032745,2]
[312818908,1706296245381,-150.0,0.00032749,2]
[312818909,1706296245391,-150.0,0.00032763,2]
[312818910,1706296245399,-500.0,0.00032767,2]
[312818911,1706296245409,-500.0,0.00032767,2]
[312818912,1706296245418,-160452.051407,0.00032767,2]
[312818913,1706296245428,-400.0,0.0003277,2]
[312818914,1706296245438,-151.0,0.00032775,30]
[312818915,1706296245447,-150.0,0.00032796,2]
[312818916,1706296245458,-1253.47677354,0.00032797,2]
[312818917,1706296245467,-463.9958283,0.00032798,4]
[312818918,1706296245478,-226.11786442,0.00032798,4]
[312818919,1706296245489,-155.0,0.00032798,4]
[312818920,1706296245498,-230.73082258,0.00032798,4]
[312818921,1706296245509,-709.5978732,0.00032798,2]
[312818922,1706296245520,-814.18421461,0.00032799,4]
[312818923,1706296245530,-1051.17652227,0.00032799,4]
[312818924,1706296245538,-300.0,0.00032799,2]
[312818925,1706296245549,-300.0,0.00032799,2]
[312818926,1706296245558,-300.0,0.00032799,2]
[312818927,1706296245567,-300.0,0.00032799,2]
[312818928,1706296245576,-300.0,0.00032799,2]
[312818929,1706296245586,-167.92454049,0.00032799,2]
[312818930,1706296245595,-2143.93192979,0.00032799,2]
[312818932,1706296245606,-366.04607581,0.00032799,2]
[312818933,1706296245615,-284.08397793,0.00032799,2]
[312818935,1706296245624,-766843.61307862,0.000328,2]
[312818936,1706296245636,-118704.68485057,0.000328,2]
[312818937,1706296245646,-500.0,0.000328,2]
[312818938,1706296245655,-330.99523482,0.000328,4]
[312818940,1706296245665,-1972.82043966,0.000328,2]
[312818942,1706296245674,-1473.10774155,0.000328,5]
[312818943,1706296245686,-207.0,0.000328,2]
[312818944,1706296245694,-207.0,0.000328,2]
[312818946,1706296245703,-201.0,0.000328,2]
[312818947,1706296245713,-2000.0,0.000328,2]
[312818948,1706296245722,-200.0,0.000328,2]
[312818949,1706296245730,-204.0,0.000328,2]
[312818950,1706296245739,-204.0,0.000328,2]
[312818951,1706296245840,-203.0,0.000328,2]
[312818952,1706296245849,-150.0,0.000328,6]
[312818953,1706296245857,-306.3722,0.000328,2]
[312818954,1706296245869,-1998.1,0.000328,2]
[312818955,1706296245878,-755.7081452,0.000328,2]
[312818956,1706296245887,-303.9,0.000328,2]
[312818957,1706296245898,-1975.383999,0.000328,2]
[312818958,1706296245909,-1000.0,0.000328,2]
[312818959,1706296245919,-7157.6181368,0.00032802,2]
[312818960,1706296245929,-1253.47677354,0.00032804,2]
[312818961,1706296245938,-208039.9349999,0.00032807,2]
[312818962,1706296245947,-3463.6609046,0.00032807,2]
[312818963,1706296245956,-13480.9484392,0.00032807,2]
[312818964,1706296245965,-19722.5184686,0.00032807,2]
[312818965,1706296245974,-4022.5095607,0.00032807,2]
[312818966,1706296245983,-18354.5814177,0.00032829,2]
[312818967,1706296245992,-11063.1825762,0.00032831,2]
[312818968,1706296246002,-21145.3706036,0.00032831,2]
[312818969,1706296246011,-4312.7076064,0.00032831,2]
[312818970,1706296246020,-833.33333,0.0003285,2]
[312818971,1706296246029,-366.04607581,0.00032853,2]
[312818972,1706296246038,-284.08397793,0.00032853,2]
[312818973,1706296246047,-702.7290101,0.00032854,2]
[312818974,1706296246056,-695.860147,0.00032854,2]
[312818975,1706296246066,-5875.4915086,0.00032854,2]
[312818976,1706296246075,-4593.3648805,0.00032854,2]
[312818977,1706296246086,-3311.2382523,0.00032854,2]
[312818978,1706296246095,-15064.9800942,0.00032854,2]
[312818979,1706296246104,-11775.3787707,0.00032854,2]
[312818980,1706296246114,-8485.7774471,0.00032854,2]
[312818981,1706296246123,-170753.9609999,0.00032854,2]
[312818982,1706296246133,-133467.9869999,0.00032854,2]
[312818983,1706296246144,-96182.0129999,0.00032854,2]
[312818984,1706296246153,-2842.4641739,0.00032854,2]
[312818985,1706296246163,-2221.2674433,0.00032854,2]
[312818986,1706296246173,-1600.0707126,0.00032854,2]
[312818987,1706296246181,-8645.4167131,0.00032854,2]
[312818988,1706296246191,-6227.65085,0.00032854,2]
[312818989,1706296246200,-22568.2227386,0.00032854,2]
[312818990,1706296246209,-23991.0748737,0.00032854,2]
[312818991,1706296246219,-4602.9056521,0.00032854,2]
[312818992,1706296246229,-4893.1036979,0.00032854,2]
[312818993,1706296246238,-601.16,0.00032867,10]
[312818994,1706296246247,-2506.95354708,0.00032874,2]
[312818995,1706296246257,-293.53315858,0.00032876,2]
[312818996,1706296246266,-366.04607581,0.00032876,2]
[312818997,1706296246275,-284.08397793,0.00032876,2]
[312818998,1706296246285,-490.74,0.00032876,2]
[312818999,1706296246295,-432.78,0.00032876,2]
[312819000,1706296246304,-420.91,0.00032876,2]
[312819001,1706296246315,-357.68,0.00032876,2]
[312819002,1706296246325,-224.8,0.00032877,2]
[312819003,1706296246334,-151.0,0.00032877,7]
[312819004,1706296246343,-151.0,0.00032877,7]
[312819005,1706296246354,-151.0,0.00032877,7]
[312819006,1706296246365,-151.0,0.00032877,7]
[312819007,1706296246375,-151.0,0.00032877,7]
[312819008,1706296246384,-204.07049,0.00032877,7]
[312819009,1706296246393,-204.07049,0.00032877,7]
[312819010,1706296246402,-151.0,0.00032877,7]
[312819011,1706296246411,-789012.09,0.00032877,2]
[312819012,1706296246420,-151.0,0.00032877,7]
[312819013,1706296246429,-301.313338,0.00032877,7]
[312819014,1706296246439,-163.76,0.00032877,2]
[312819015,1706296246448,-151.0,0.00032877,7]
[312819016,1706296246457,-500.0,0.00032877,2]
[312819017,1706296246466,-151.0,0.00032877,7]
[312819018,1706296246476,-151.0,0.00032877,7]
[312819019,1706296246485,-151.0,0.00032877,7]
[312819020,1706296246494,-151.0,0.00032877,7]
[312819021,1706296246503,-151.0,0.00032877,7]
[312819022,1706296246513,-151.0,0.00032877,7]
[312819023,1706296246522,-151.0,0.00032877,7]
[312819024,1706296246531,-151.0,0.00032877,7]
[312819025,1706296246541,-525.06,0.00032877,2]
[312819026,1706296246550,-151.0,0.00032877,7]
[312819027,1706296246559,-151.0,0.00032877,7]
[312819028,1706296246568,-151.0,0.00032877,7]
[312819029,1706296246578,-151.0,0.00032877,7]
[312819030,1706296246587,-151.0,0.00032877,7]
[312819031,1706296246596,-163.669772,0.00032877,7]
[312819032,1706296246606,-151.0,0.00032877,7]
[312819033,1706296246615,-167.26,0.00032877,2]
[312819034,1706296246625,-151.0,0.00032877,7]
[312819035,1706296246636,-151.0,0.00032877,7]
[312819036,1706296246646,-151.0,0.00032877,7]
[312819037,1706296246656,-151.0,0.00032877,7]
[312819038,1706296246666,-151.0,0.00032877,7]
[312819039,1706296246675,-151.0,0.00032877,7]
[312819040,1706296246685,-871.360866,0.00032877,7]
[312819041,1706296246696,-871.360866,0.00032877,7]
[312819042,1706296246705,-151.0,0.00032877,7]
[312819043,1706296246714,-151.0,0.00032877,7]
[312819044,1706296246724,-871.360866,0.00032877,7]
[312819045,1706296246733,-871.360866,0.00032877,7]
[312819046,1706296246742,-151.0,0.00032877,7]
[312819047,1706296246751,-505.82332,0.00032877,7]
[312819048,1706296246761,-505.82332,0.00032877,7]
[312819049,1706296246770,-505.82332,0.00032877,7]
[312819050,1706296246779,-505.82332,0.00032877,7]
[312819051,1706296246787,-481.541857,0.00032877,7]
[312819052,1706296246797,-481.541857,0.00032877,7]
[312819053,1706296246807,-481.541857,0.00032877,7]
[312819054,1706296246817,-481.541857,0.00032877,7]
[312819055,1706296246828,-151.0,0.00032877,7]
[312819056,1706296246837,-151.0,0.00032877,7]
[312819057,1706296246846,-176.300185,0.00032877,7]
[312819058,1706296246855,-809.763732,0.00032877,7]
[312819059,1706296246864,-809.763732,0.00032877,7]
[312819060,1706296246874,-2603.84966,0.00032877,7]
[312819061,1706296246884,-2603.84966,0.00032877,7]
[312819062,1706296246894,-809.763732,0.00032877,7]
[312819063,1706296246907,-809.763732,0.00032877,7]
[312819064,1706296246916,-2603.84966,0.00032877,7]
[312819065,1706296246925,-2603.84966,0.00032877,7]
[312819066,1706296246934,-465.977409,0.00032877,7]
[312819067,1706296246943,-465.977409,0.00032877,7]
[312819068,1706296246953,-465.977409,0.00032877,7]
[312819069,1706296246962,-465.977409,0.00032877,7]
[312819070,1706296246971,-37112.6,0.00032877,2]
[312819071,1706296246982,-151.0,0.00032877,7]
[312819072,1706296246993,-151.0,0.00032877,7]
[312819073,1706296247002,-316.86,0.00032877,2]
[312819074,1706296247011,-5649.805454,0.00032877,7]
[312819075,1706296247021,-5649.805454,0.00032877,7]
[312819076,1706296247030,-5649.805454,0.00032877,7]
[312819077,1706296247040,-5649.805454,0.00032877,7]
[312819078,1706296247049,-5649.805454,0.00032877,7]
[312819079,1706296247058,-5649.805454,0.00032877,7]
[312819080,1706296247068,-151.0,0.00032877,7]
[312819081,1706296247077,-151.0,0.00032877,7]
[312819082,1706296247087,-151.0,0.00032877,7]
[312819083,1706296247098,-151.0,0.00032877,7]
[312819084,1706296247107,-151.0,0.00032877,7]
[312819085,1706296247117,-151.0,0.00032877,7]
[312819086,1706296247127,-151.0,0.00032877,7]
[312819087,1706296247138,-151.0,0.00032877,7]
[312819088,1706296247147,-1065.03,0.00032877,15]
[312819089,1706296247156,-151.0,0.00032877,7]
[312819090,1706296247166,-151.0,0.00032877,7]
[312819091,1706296247175,-151.0,0.00032877,7]
[312819092,1706296247184,-55315.34,0.00032877,2]
[312819093,1706296247194,-151.0,0.00032877,7]
[312819094,1706296247203,-151.0,0.00032877,7]
[312819096,1706296247212,-281.368624,0.00032877,7]
[312819097,1706296247221,-151.0,0.00032877,7]
[312819098,1706296247230,-151.0,0.00032877,7]
[312819099,1706296247239,-151.0,0.00032877,7]
[312819100,1706296247248,-204.07049,0.00032877,7]
[312819101,1706296247257,-204.07049,0.00032877,7]
[312819102,1706296247266,-151.0,0.00032877,7]
[312819103,1706296247276,-151.0,0.00032877,7]
[312819104,1706296247285,-155.0,0.00032877,2]
[312819105,1706296247296,-151.0,0.00032877,7]
[312819106,1706296247305,-151.0,0.00032877,7]
[312819108,1706296247314,-151.0,0.00032877,7]
[312819110,1706296247323,-151.0,0.00032877,7]
[312819112,1706296247332,-151.0,0.00032877,7]
[312819114,1706296247341,-151.0,0.00032877,7]
[312819116,1706296247350,-151.0,0.00032877,7]
[312819118,1706296247358,-173.833842,0.00032877,7]
[312819120,1706296247367,-151.0,0.00032877,7]
[312819122,1706296247376,-151.0,0.00032877,7]
[312819124,1706296247386,-206.143927,0.00032877,7]
[312819126,1706296247395,-151.0,0.00032877,7]
[312819128,1706296247404,-245.956193,0.00032877,7]
[312819130,1706296247413,-871.360866,0.00032877,7]
[312819132,1706296247422,-871.360866,0.00032877,7]
[312819134,1706296247431,-151.0,0.00032877,7]
[312819136,1706296247441,-151.0,0.00032877,7]
[312819138,1706296247450,-871.360866,0.00032877,7]
[312819141,1706296247458,-871.360866,0.00032877,7]
[312819143,1706296247468,-505.82332,0.00032877,7]
[312819144,1706296247477,-505.82332,0.00032877,7]
[312819145,1706296247486,-505.82332,0.00032877,7]
[312819146,1706296247494,-505.82332,0.00032877,7]
[312819147,1706296247503,-481.541857,0.00032877,7]
[312819148,1706296247512,-481.541857,0.00032877,7]
[312819154,1706296247608,-481.541857,0.00032877,7]
[312819156,1706296247617,-481.541857,0.00032877,7]
[312819158,1706296247626,-151.0,0.00032877,7]
[312819160,1706296247636,-809.763732,0.00032877,7]
[312819162,1706296247645,-2603.84966,0.00032877,7]
[312819164,1706296247655,-809.763732,0.00032877,7]
[312819166,1706296247664,-2603.84966,0.00032877,7]
[312819168,1706296247673,-465.977409,0.00032877,7]
[312819170,1706296247682,-465.977409,0.00032877,7]
[312819172,1706296247691,-151.0,0.00032877,7]
[312819174,1706296247700,-5649.805454,0.00032877,7]
[312819176,1706296247709,-5649.805454,0.00032877,7]
[312819178,1706296247718,-206.540533,0.00032877,7]